fUSD/lending_fUSD_20250307
["ID","MTS","AMOUNT","RATE_DAILY","PERIOD"]
[355583538,1741326646867,-500.0,9.792e-05,2]
[355583539,1741326646878,-500.0,9.792e-05,2]
[355583540,1741326646887,-500.0,9.792e-05,2]
[355583541,1741326646895,-500.0,9.792e-05,2]
[355583542,1741326646905,-500.0,9.792e-05,2]
[355583543,1741326646915,-500.0,9.792e-05,2]
[355583544,1741326646924,-500.0,9.792e-05,2]
[355583545,1741326646933,-500.0,9.792e-05,2]
[355583546,1741326646943,-500.0,9.792e-05,2]
[355583547,1741326646952,-307.16230246,9.792e-05,2]
[355583548,1741326646961,-500.0,9.792e-05,2]
[355583549,1741326646971,-500.0,9.792e-05,2]
[355583550,1741326646980,-500.0,9.792e-05,2]
[355583551,1741326646990,-500.0,9.792e-05,2]
[355583552,1741326647000,-500.0,9.792e-05,2]
[355583553,1741326647010,-500.0,9.792e-05,2]
[355583554,1741326647019,-500.0,9.792e-05,2]
[355583555,1741326647029,-500.0,9.792e-05,2]
[355583556,1741326647038,-500.0,9.792e-05,2]
[355583557,1741326647048,-500.0,9.792e-05,2]
[355583558,1741326647058,-500.0,9.792e-05,2]
[355583559,1741326647067,-500.0,9.792e-05,2]
[355583560,1741326647077,-500.0,9.792e-05,2]
[355583561,1741326647091,-500.0,9.792e-05,2]
[355583562,1741326647103,-500.0,9.792e-05,2]
[355583563,1741326647113,-500.0,9.792e-05,2]
[355583564,1741326647123,-500.0,9.792e-05,2]
[355583565,1741326647134,-500.0,9.792e-05,2]
[355583566,1741326647143,-500.0,9.792e-05,2]
[355583567,1741326647153,-500.0,9.792e-05,2]
[355583568,1741326647163,-500.0,9.792e-05,2]
[355583569,1741326647174,-500.0,9.792e-05,2]
[355583570,1741326647184,-500.0,9.792e-05,2]
[355583571,1741326647194,-500.0,9.792e-05,2]
[355583572,1741326647204,-500.0,9.792e-05,2]
[355583573,1741326647213,-500.0,9.792e-05,2]
[355583574,1741326647223,-500.0,9.792e-05,2]
[355583575,1741326647233,-500.0,9.792e-05,2]
[355583576,1741326647242,-500.0,9.792e-05,2]
[355583577,1741326647251,-509.65458861,9.792e-05,2]
[355583578,1741326647260,-500.0,9.792e-05,2]
[355583579,1741326647269,-500.0,9.792e-05,2]
[355583580,1741326647279,-500.0,9.792e-05,2]
[355583581,1741326647290,-500.0,9.792e-05,2]
[355583582,1741326647299,-500.0,9.792e-05,2]
[355583583,1741326647308,-500.0,9.792e-05,2]
[355583584,1741326647317,-500.0,9.792e-05,2]
[355583585,1741326647326,-625.72164684,9.792e-05,2]
[355583586,1741326647338,-500.0,9.792e-05,2]
[355583587,1741326647349,-500.0,9.792e-05,2]
[355583588,1741326647359,-500.0,9.792e-05,2]
[355583589,1741326647368,-500.0,9.792e-05,2]
[355583590,1741326647380,-500.0,9.792e-05,2]
[355583591,1741326647389,-500.0,9.792e-05,2]
[355583592,1741326647398,-500.0,9.792e-05,2]
[355583593,1741326647408,-500.0,9.792e-05,2]
[355583594,1741326647418,-250.6898468,9.792e-05,2]
[355583595,1741326647428,-500.0,9.792e-05,2]
[355583596,1741326647437,-500.0,9.792e-05,2]
[355583597,1741326647446,-500.0,9.792e-05,2]
[355583598,1741326647455,-779.27,9.792e-05,2]
[355583599,1741326647464,-500.0,9.792e-05,2]
[355583600,1741326647474,-500.0,9.792e-05,2]
[355583601,1741326647483,-500.0,9.792e-05,2]
[355583602,1741326647492,-718.68,9.792e-05,2]
[355583603,1741326647502,-500.0,9.792e-05,2]
[355583604,1741326647511,-500.0,9.792e-05,2]
[355583605,1741326647521,-1105.66,9.792e-05,2]
[355583606,1741326647530,-500.0,9.792e-05,2]
[355583607,1741326647539,-500.0,9.792e-05,2]
[355583608,1741326647549,-500.0,9.792e-05,2]
[355583609,1741326647558,-500.0,9.792e-05,2]
[355583610,1741326647568,-500.0,9.792e-05,2]
[355583611,1741326647577,-500.0,9.792e-05,2]
[355583612,1741326647587,-500.0,9.792e-05,2]
[355583613,1741326647596,-509.9301849,9.792e-05,2]
[355583614,1741326647605,-492.10134454,9.792e-05,2]
[355583615,1741326647615,-500.0,9.792e-05,2]
[355583616,1741326647627,-500.0,9.792e-05,2]
[355583617,1741326647637,-500.0,9.792e-05,2]
[355583618,1741326647646,-500.0,9.792e-05,2]
[355583619,1741326647655,-542.47319918,9.792e-05,2]
[355583620,1741326647665,-500.0,9.792e-05,2]
[355583621,1741326647868,-673.13,9.792e-05,2]
[355583622,1741326647879,-500.0,9.792e-05,2]
[355583623,1741326647889,-500.0,9.792e-05,2]
[355583624,1741326647898,-735.48,9.792e-05,2]
[355583625,1741326647908,-500.0,9.792e-05,2]
[355583626,1741326647918,-500.0,9.792e-05,2]
[355583627,1741326647928,-500.0,9.792e-05,2]
[355583628,1741326647938,-500.0,9.792e-05,2]
[355583629,1741326647947,-500.0,9.792e-05,2]
[355583630,1741326647956,-500.0,9.792e-05,2]
[355583631,1741326647965,-511.68326401,9.792e-05,2]
[355583632,1741326647975,-708.34,9.792e-05,2]
[355583633,1741326647984,-500.0,9.792e-05,2]
[355583634,1741326647996,-500.0,9.792e-05,2]
[355583635,1741326648009,-500.0,9.792e-05,2]
[355583636,1741326648019,-500.0,9.792e-05,2]
[355583637,1741326648029,-500.0,9.792e-05,2]
[355583638,1741326648039,-500.0,9.792e-05,2]
[355583639,1741326648049,-519.83489712,9.792e-05,2]
[355583640,1741326648059,-500.0,9.792e-05,2]
[355583641,1741326648069,-500.0,9.792e-05,2]
[355583642,1741326648078,-500.0,9.792e-05,2]
[355583643,1741326648087,-500.0,9.792e-05,2]
[355583644,1741326648097,-500.0,9.792e-05,2]
[355583645,1741326648106,-500.0,9.792e-05,2]
[355583646,1741326648116,-500.0,9.792e-05,2]
[355583647,1741326648127,-500.0,9.792e-05,2]
[355583648,1741326648136,-533.56,9.792e-05,2]
[355583649,1741326648146,-500.0,9.792e-05,2]
[355583650,1741326648156,-500.0,9.792e-05,2]
[355583651,1741326648172,-500.0,9.792e-05,2]
[355583652,1741326648182,-521.17702783,9.792e-05,2]
[355583653,1741326648191,-500.0,9.792e-05,2]
[355583654,1741326648201,-500.0,9.792e-05,2]
[355583655,1741326648210,-500.0,9.792e-05,2]
[355583656,1741326648219,-500.0,9.792e-05,2]
[355583657,1741326648228,-529.01861308,9.792e-05,2]
[355583658,1741326648239,-518.34190039,9.792e-05,2]
[355583659,1741326648249,-991.04,9.792e-05,2]
[355583660,1741326648258,-500.0,9.792e-05,2]
[355583661,1741326648268,-500.0,9.792e-05,2]
[355583662,1741326648278,-500.0,9.792e-05,2]
[355583663,1741326648287,-505.85776149,9.792e-05,2]
[355583664,1741326648296,-341.75531204,9.792e-05,2]
[355583665,1741326648306,-500.0,9.792e-05,2]
[355583666,1741326648315,-500.0,9.792e-05,2]
[355583667,1741326648325,-500.0,9.792e-05,2]
[355583668,1741326648335,-500.0,9.792e-05,2]
[355583669,1741326648344,-500.0,9.792e-05,2]
[355583670,1741326648354,-500.0,9.792e-05,2]
[355583671,1741326648363,-500.0,9.792e-05,2]
[355583672,1741326648373,-500.0,9.792e-05,2]
[355583673,1741326648386,-500.0,9.792e-05,2]
[355583674,1741326648395,-500.0,9.792e-05,2]
[355583675,1741326648405,-980.96,9.792e-05,2]
[355583676,1741326648416,-536.59471956,9.792e-05,2]
[355583677,1741326648426,-500.0,9.792e-05,2]
[355583678,1741326648436,-725.19,9.792e-05,2]
[355583679,1741326648446,-503.85626891,9.792e-05,2]
[355583680,1741326648456,-500.0,9.792e-05,2]
[355583681,1741326648466,-500.0,9.792e-05,2]
[355583682,1741326648476,-702.32,9.792e-05,2]
[355583683,1741326648485,-500.0,9.792e-05,2]
[355583684,1741326648494,-507.02530533,9.792e-05,2]
[355583685,1741326648504,-500.0,9.792e-05,2]
[355583686,1741326648513,-510.52595497,9.792e-05,2]
[355583687,1741326648523,-721.75,9.792e-05,2]
[355583688,1741326648532,-500.0,9.792e-05,2]
[355583689,1741326648542,-512.649527,9.792e-05,2]
[355583690,1741326648552,-500.0,9.792e-05,2]
[355583691,1741326648561,-500.0,9.792e-05,2]
[355583692,1741326648571,-500.0,9.792e-05,2]
[355583693,1741326648581,-500.0,9.792e-05,2]
[355583694,1741326648591,-500.0,9.792e-05,2]
[355583695,1741326648601,-609.1,9.792e-05,2]
[355583696,1741326648610,-500.0,9.792e-05,2]
[355583697,1741326648620,-500.0,9.792e-05,2]
[355583698,1741326648632,-504.32728843,9.792e-05,2]
[355583699,1741326648643,-500.0,9.792e-05,2]
[355583700,1741326648653,-500.0,9.792e-05,2]
[355583701,1741326648663,-500.0,9.792e-05,2]
[355583702,1741326648673,-500.0,9.792e-05,2]
[355583703,1741326648683,-731.35,9.792e-05,2]
[355583704,1741326648697,-500.0,9.792e-05,2]
[355583705,1741326648707,-500.0,9.792e-05,2]
[355583706,1741326648717,-500.0,9.792e-05,2]
[355583707,1741326648727,-500.0,9.792e-05,2]
[355583708,1741326648737,-500.0,9.792e-05,2]
[355583709,1741326648748,-500.0,9.792e-05,2]
[355583710,1741326648758,-500.0,9.792e-05,2]
[355583711,1741326648767,-601.37,9.792e-05,2]
[355583712,1741326648778,-500.0,9.792e-05,2]
[355583713,1741326648787,-500.0,9.792e-05,2]
[355583714,1741326648797,-500.0,9.792e-05,2]
[355583715,1741326648807,-500.0,9.792e-05,2]
[355583716,1741326648816,-500.0,9.792e-05,2]
[355583717,1741326648826,-515.37358047,9.792e-05,2]
[355583718,1741326648835,-500.0,9.792e-05,2]
[355583719,1741326648845,-500.0,9.792e-05,2]
[355583720,1741326648855,-526.93229456,9.792e-05,2]
[355583721,1741326648865,-500.0,9.792e-05,2]
[355583722,1741326648875,-500.0,9.792e-05,2]
[355583723,1741326648885,-500.0,9.792e-05,2]
[355583724,1741326648895,-500.0,9.792e-05,2]
[355583725,1741326648906,-500.0,9.792e-05,2]
[355583726,1741326648915,-500.0,9.792e-05,2]
[355583727,1741326648925,-500.0,9.792e-05,2]
[355583728,1741326648934,-500.0,9.792e-05,2]
[355583729,1741326648943,-500.0,9.792e-05,2]
[355583730,1741326648953,-504.88314836,9.792e-05,2]
[355583731,1741326648962,-500.0,9.792e-05,2]
[355583732,1741326648971,-500.0,9.792e-05,2]
[355583733,1741326648981,-500.0,9.792e-05,2]
[355583734,1741326648990,-500.0,9.792e-05,2]
[355583735,1741326649000,-506.59999489,9.792e-05,2]
[355583736,1741326649009,-558.75,9.792e-05,2]
[355583737,1741326649018,-509.74080461,9.792e-05,2]
[355583738,1741326649028,-507.32932015,9.792e-05,2]
[355583739,1741326649037,-505.02905599,9.792e-05,2]
[355583740,1741326649047,-500.0,9.792e-05,2]
[355583741,1741326649056,-500.0,9.792e-05,2]
[355583742,1741326649065,-502.79723142,9.792e-05,2]
[355583743,1741326649075,-504.66752554,9.792e-05,2]
[355583744,1741326649084,-500.0,9.792e-05,2]
[355583745,1741326649094,-539.97800939,9.792e-05,2]
[355583746,1741326649104,-500.0,9.792e-05,2]
[355583747,1741326649113,-565.75,9.792e-05,2]
[355583748,1741326649123,-500.0,9.792e-05,2]
[355583749,1741326649134,-504.68978637,9.792e-05,2]
[355583750,1741326649143,-500.0,9.792e-05,2]
[355583751,1741326649153,-519.84442097,9.792e-05,2]
[355583752,1741326649162,-705.64,9.792e-05,2]
[355583753,1741326649171,-505.77679685,9.792e-05,2]
[355583754,1741326649181,-502.84339183,9.792e-05,2]
[355583755,1741326649191,-506.00115031,9.792e-05,2]
[355583756,1741326649200,-504.5277933,9.792e-05,2]
[355583757,1741326649209,-949.99,9.792e-05,2]
[355583758,1741326649218,-500.79900961,9.792e-05,2]
[355583759,1741326649227,-606.8113451,9.792e-05,2]
[355583760,1741326649237,-500.0,9.792e-05,2]
[355583761,1741326649246,-510.16619847,9.792e-05,2]
[355583762,1741326649255,-505.13566889,9.792e-05,2]
[355583763,1741326649265,-500.0,9.792e-05,2]
[355583764,1741326649274,-1260.98,9.792e-05,2]
[355583765,1741326649283,-529.6751393,9.792e-05,2]
[355583766,1741326649292,-507.46199596,9.792e-05,2]
[355583767,1741326649302,-507.31227456,9.792e-05,2]
[355583768,1741326649312,-503.43904141,9.792e-05,2]
[355583769,1741326649321,-500.0,9.792e-05,2]
[355583770,1741326649331,-497.66731676,9.792e-05,2]
[355583771,1741326649341,-500.0,9.792e-05,2]
[355583772,1741326649350,-500.0,9.792e-05,2]
[355583773,1741326649360,-503.86527065,9.792e-05,2]
[355583774,1741326649369,-505.28213154,9.792e-05,2]
[355583775,1741326649379,-500.0,9.792e-05,2]
[355583776,1741326649388,-500.0,9.792e-05,2]
[355583777,1741326649397,-500.0,9.792e-05,2]
[355583778,1741326649406,-500.0,9.792e-05,2]
[355583779,1741326649415,-505.93159123,9.792e-05,2]
[355583780,1741326649424,-509.92,9.792e-05,2]
[355583781,1741326649434,-500.0,9.792e-05,2]
[355583782,1741326649443,-515.46834122,9.792e-05,2]
[355583783,1741326649452,-505.24170255,9.792e-05,2]
[355583784,1741326649462,-516.09154807,9.792e-05,2]
[355583785,1741326649471,-1711.45,9.792e-05,2]
[355583786,1741326649480,-502.81187614,9.792e-05,2]
[355583787,1741326649490,-532.96,9.792e-05,2]
[355583788,1741326649499,-500.0,9.792e-05,2]
[355583789,1741326649508,-1297.61,9.792e-05,2]
[355583790,1741326649518,-509.15021905,9.792e-05,2]
[355583791,1741326649527,-504.4617285,9.792e-05,2]
[355583792,1741326649536,-1914.35,9.792e-05,2]
[355583793,1741326649545,-500.0,9.792e-05,2]
[355583794,1741326649554,-503.13495531,9.792e-05,2]
[355583795,1741326649564,-610.42,9.792e-05,2]
[355583796,1741326649574,-500.0,9.792e-05,2]
[355583797,1741326649584,-502.36928683,9.792e-05,2]
[355583798,1741326649594,-1575.02,9.792e-05,2]
[355583799,1741326649604,-511.92284376,9.792e-05,2]
[355583800,1741326649613,-500.0,9.792e-05,2]
[355583801,1741326649622,-502.72282012,9.792e-05,2]
[355583802,1741326649631,-506.76239874,9.792e-05,2]
[355583803,1741326649641,-500.0,9.792e-05,2]
[355583804,1741326649651,-504.09662994,9.792e-05,2]
[355583805,1741326649660,-1021.99,9.792e-05,2]
[355583806,1741326649669,-505.16174073,9.792e-05,2]
[355583807,1741326649678,-509.01984858,9.792e-05,2]
[355583808,1741326649687,-4054.49,9.792e-05,2]
[355583809,1741326649698,-500.29397879,9.792e-05,2]
[355583810,1741326649707,-500.0,9.792e-05,2]
[355583811,1741326649716,-503.55962841,9.792e-05,2]
[355583812,1741326649725,-3253.84,9.792e-05,2]
[355583813,1741326649736,-826.02,9.792e-05,2]
[355583814,1741326649745,-511.87922044,9.792e-05,2]
[355583815,1741326649754,-506.53358842,9.792e-05,2]
[355583816,1741326649763,-501.32003345,9.792e-05,2]
[355583817,1741326649774,-20169.58,9.792e-05,2]
[355583818,1741326649784,-500.0,9.792e-05,2]
[355583819,1741326649793,-505.81427167,9.792e-05,2]
[355583820,1741326649803,-508.00298985,9.792e-05,2]
[355583821,1741326649813,-520.91467698,9.792e-05,2]
[355583822,1741326649822,-506.61762918,9.792e-05,2]
[355583823,1741326649832,-503.25368297,9.792e-05,2]
[355583824,1741326649841,-504.27715911,9.792e-05,2]
[355583825,1741326649850,-507.92998666,9.792e-05,2]
[355583826,1741326649860,-503.5436919,9.792e-05,2]
[355583827,1741326649871,-510.83016085,9.792e-05,2]
[355583828,1741326649880,-504.88680461,9.792e-05,2]
[355583829,1741326649890,-497.58039974,9.792e-05,2]
[355583830,1741326649900,-2294.31,9.792e-05,2]
[355583831,1741326649910,-500.0,9.792e-05,2]
[355583832,1741326649920,-506.07330487,9.792e-05,2]
[355583833,1741326649929,-1465.35,9.792e-05,2]
[355583834,1741326649939,-504.08800561,9.792e-05,2]
[355583835,1741326649948,-5012.65204669,9.792e-05,2]
[355583836,1741326649958,-593.41391631,9.792e-05,2]
[355583837,1741326649968,-500.0,9.792e-05,2]
[355583838,1741326649978,-501.4782029,9.792e-05,2]
[355583839,1741326649988,-1370.51,9.792e-05,2]
[355583840,1741326649998,-509.00871482,9.792e-05,2]
[355583841,1741326650008,-506.00286591,9.792e-05,2]
[355583842,1741326650017,-1603.13,9.792e-05,2]
[355583843,1741326650027,-500.0,9.792e-05,2]
[355583844,1741326650036,-510.16907912,9.792e-05,2]
[355583845,1741326650046,-508.2746538,9.792e-05,2]
[355583846,1741326650057,-500.0,9.792e-05,2]
[355583847,1741326650067,-502.91280719,9.792e-05,2]
[355583848,1741326650076,-503.30145798,9.792e-05,2]
[355583849,1741326650085,-500.0,9.792e-05,2]
[355583850,1741326650095,-525.69533995,9.792e-05,2]
[355583851,1741326650104,-500.0,9.792e-05,2]
[355583852,1741326650114,-514.54151262,9.792e-05,2]
[355583853,1741326650124,-363.89543985,9.792e-05,2]
[355583854,1741326650134,-500.0,9.792e-05,2]
[355583855,1741326650143,-2827.93,9.792e-05,2]
[355583856,1741326650153,-511.68389685,9.792e-05,2]
[355583857,1741326650163,-632.27,9.792e-05,2]
[355583858,1741326650172,-500.0,9.792e-05,2]
[355583859,1741326650181,-500.0,9.792e-05,2]
[355583860,1741326650191,-17106.72,9.792e-05,2]
[355583861,1741326650200,-500.0,9.792e-05,2]
[355583862,1741326650209,-500.0,9.792e-05,2]
[355583863,1741326650218,-500.0,9.792e-05,2]
[355583864,1741326650227,-500.0,9.792e-05,2]
[355583865,1741326650237,-502.16542504,9.792e-05,2]
[355583866,1741326650247,-506.06277609,9.792e-05,2]
[355583867,1741326650257,-565.13667394,9.792e-05,2]
[355583868,1741326650266,-2137.53,9.792e-05,2]
[355583869,1741326650278,-506.05509079,9.792e-05,2]
[355583870,1741326650288,-505.65797339,9.792e-05,2]
[355583871,1741326650297,-505.4493158,9.792e-05,2]
[355583872,1741326650307,-506.7658906,9.792e-05,2]
[355583873,1741326650316,-500.0,9.792e-05,2]
[355583874,1741326650327,-505.09792386,9.792e-05,2]
[355583875,1741326650337,-611.25,9.792e-05,2]
[355583876,1741326650346,-503.02083645,9.792e-05,2]
[355583877,1741326650356,-557.89340028,9.792e-05,2]
[355583878,1741326650376,-500.0,9.792e-05,2]
[355583879,1741326650387,-507.29005917,9.792e-05,2]
[355583880,1741326650397,-1829.2,9.792e-05,2]
[355583881,1741326650407,-500.0,9.792e-05,2]
[355583882,1741326650417,-505.70933695,9.792e-05,2]
[355583883,1741326650427,-3864.65,9.792e-05,2]
[355583884,1741326650437,-500.0,9.792e-05,2]
[355583885,1741326650447,-500.0,9.792e-05,2]
[355583886,1741326650457,-507.93997377,9.792e-05,2]
[355583887,1741326650467,-500.0,9.792e-05,2]
[355583888,1741326650477,-1000.0,9.792e-05,2]
[355583889,1741326650487,-500.0,9.792e-05,2]
[355583890,1741326650496,-503.8603708,9.792e-05,2]
[355583891,1741326650506,-500.0,9.792e-05,2]
[355583892,1741326650516,-758.3,9.792e-05,2]
[355583893,1741326650525,-3964.84,9.792e-05,2]
[355583894,1741326650535,-504.45732086,9.792e-05,2]
[355583895,1741326650545,-509.40205028,9.792e-05,2]
[355583896,1741326650554,-501.06526196,9.792e-05,2]
[355583897,1741326650564,-500.0,9.792e-05,2]
[355583898,1741326650574,-3572.04,9.792e-05,2]
[355583899,1741326650583,-509.12992891,9.792e-05,2]
[355583900,1741326650594,-535.44387775,9.794e-05,2]
[355583901,1741326650603,-500.0,9.794e-05,2]
[355583902,1741326650613,-507.25440294,9.794e-05,2]
[355583903,1741326650623,-500.0,9.794e-05,2]
[355583904,1741326650634,-500.0,9.794e-05,2]
[355583905,1741326650644,-500.0,9.794e-05,2]
[355583906,1741326650654,-500.0,9.794e-05,2]
[355583907,1741326650663,-500.0,9.794e-05,2]
[355583908,1741326650673,-503.22782471,9.794e-05,2]
[355583909,1741326650682,-540.61040207,9.794e-05,2]
[355583910,1741326650693,-620.23583856,9.794e-05,2]
[355583911,1741326650705,-514.58837539,9.794e-05,2]
[355583912,1741326650714,-500.0,9.794e-05,2]
[355583913,1741326650723,-511.23540697,9.794e-05,2]
[355583914,1741326650735,-500.0,9.794e-05,2]
[355583915,1741326650745,-500.0,9.794e-05,2]
[355583916,1741326650754,-500.0,9.794e-05,2]
[355583917,1741326650763,-500.0,9.794e-05,2]
[355583918,1741326650774,-500.0,9.794e-05,2]
[355583919,1741326650784,-500.0,9.794e-05,2]
[355583920,1741326650794,-500.0,9.794e-05,2]
[355583921,1741326650803,-500.0,9.794e-05,2]
[355583922,1741326650813,-501.24,9.794e-05,2]
[355583923,1741326650823,-500.0,9.794e-05,2]
[355583924,1741326650832,-1088.19,9.794e-05,2]
[355583925,1741326650842,-500.0,9.794e-05,2]
[355583926,1741326650852,-500.0,9.794e-05,2]
[355583927,1741326650861,-500.0,9.794e-05,2]
[355583928,1741326650871,-500.0,9.794e-05,2]
[355583929,1741326650882,-500.0,9.794e-05,2]
[355583930,1741326650891,-500.0,9.794e-05,2]
[355583931,1741326650901,-596.11,9.794e-05,2]
[355583932,1741326650911,-500.0,9.794e-05,2]
[355583933,1741326650921,-908.92,9.794e-05,2]
[355583934,1741326650935,-500.0,9.794e-05,2]
[355583935,1741326650946,-1152.51,9.794e-05,2]
[355583936,1741326650956,-500.0,9.794e-05,2]
[355583937,1741326650966,-500.0,9.794e-05,2]
[355583938,1741326650975,-500.0,9.794e-05,2]
[355583939,1741326650985,-500.0,9.794e-05,2]
[355583940,1741326650994,-599.39,9.794e-05,2]
[355583941,1741326651004,-500.0,9.794e-05,2]
[355583942,1741326651014,-500.0,9.794e-05,2]
[355583943,1741326651023,-500.0,9.794e-05,2]
[355583944,1741326651033,-500.0,9.794e-05,2]
[355583945,1741326651043,-500.0,9.794e-05,2]
[355583946,1741326651052,-500.0,9.794e-05,2]
[355583947,1741326651062,-698.8,9.794e-05,2]
[355583948,1741326651071,-3134.48,9.794e-05,2]
[355583949,1741326651081,-1212.5,9.794e-05,2]
[355583950,1741326651091,-778.28,9.794e-05,2]
[355583951,1741326651100,-4415.19,9.794e-05,2]
[355583952,1741326651292,-8366.31,9.794e-05,2]
[355583953,1741326651322,-3128.96,9.794e-05,2]
[355583954,1741326651331,-505.74507238,9.795e-05,2]
[355583955,1741326651340,-511.38668088,9.795e-05,2]
[355583956,1741326651350,-500.0,9.795e-05,2]
[355583957,1741326651359,-156.0,9.795e-05,3]
[355583958,1741326651368,-159.0,9.795e-05,3]
[355583959,1741326651378,-150.0,9.795e-05,3]
[355583960,1741326651387,-981.0,9.797e-05,2]
[355583961,1741326651397,-169025.98884878,9.798e-05,2]
[355583962,1741326651747,-432.19494406,9.798e-05,2]
[355583963,1741326651766,-841.47327094,9.798e-05,2]
[355583964,1741326651794,-660.83308532,9.798e-05,2]
[355583965,1741326651807,-658.63300375,9.798e-05,2]
[355583966,1741326725603,2036.13,0.00020111,120]
[355583967,1741326991377,1904.73,8.219e-05,2]
[355583969,1741327427213,-1061.0,8.554e-05,2]
[355583970,1741327476774,-2002.0,8.6e-05,2]
[355583979,1741327831890,-366.77,8.864e-05,2]
[355583980,1741327831954,-599.29702508,8.864e-05,2]
[355583981,1741327831966,-1033.93297492,8.864e-05,2]
[355583982,1741327831976,-250.0,8.864e-05,2]
[355583983,1741327831986,-16.06702508,8.874e-05,2]
[355583984,1741327831998,-278.89297492,8.874e-05,2]
[355583985,1741327832007,-205.65174383,8.878e-05,2]
[355583986,1741327832089,-94.34825617,8.878e-05,2]
[355583987,1741327832099,-60.37350784,8.879e-05,2]
[355583988,1741327832111,-23839.62649216,8.879e-05,2]
[355583989,1741327832122,-1000.0,8.888e-05,2]
[355583990,1741327832131,-168.48,8.925e-05,2]
[355583991,1741327832141,-1061.0,9.005e-05,2]
[355583992,1741327832154,-500.0,9.068e-05,2]
[355583993,1741327832168,-1000.0,9.068e-05,2]
[355583994,1741327832178,-150.0,9.069e-05,2]
[355583995,1741327832187,-778.22,9.07e-05,2]
[355583996,1741327832196,-441.51,9.07e-05,2]
[355583997,1741327832206,-344.75,9.07e-05,2]
[355583998,1741327832216,-441.51,9.07e-05,2]
[355583999,1741327832225,-778.22,9.07e-05,2]
[355584000,1741327832235,-441.51,9.07e-05,2]
[355584001,1741327832244,-665.93,9.07e-05,2]
[355584002,1741327832254,-1061.0,9.479e-05,2]
[355584003,1741327832264,-150.0,9.562e-05,7]
[355584004,1741327832278,-420.0,9.765e-05,2]
[355584005,1741327832287,-753.79686032,9.78e-05,2]
[355584006,1741327832297,-198.47412112,9.788e-05,2]
[355584007,1741327832307,-1966.4,9.788e-05,2]
[355584008,1741327832316,-690.51,9.788e-05,2]
[355584009,1741327832326,-2444.3,9.788e-05,2]
[355584010,1741327832335,-1208.87,9.788e-05,2]
[355584011,1741327832344,-4546.42,9.788e-05,2]
[355584012,1741327832354,-571.4824792,9.788e-05,2]
[355584013,1741327832383,-261.78032785,9.788e-05,2]
[355584014,1741327832395,-2281.81719295,9.788e-05,2]
[355584015,1741327832405,-500.0,9.788e-05,2]
[355584016,1741327832414,-2790.96,9.788e-05,2]
[355584017,1741327832423,-849.31,9.788e-05,2]
[355584018,1741327832433,-1435.02,9.788e-05,2]
[355584019,1741327832442,-107.76972705,9.788e-05,2]
[355584020,1741327832454,-392.23027295,9.788e-05,2]
[355584021,1741327832464,-955.87104157,9.788e-05,2]
[355584030,1741327837795,-957.2424092,9.788e-05,2]
[355584031,1741327837806,-215.50654923,9.788e-05,2]
[355584032,1741327837816,-2416.15342077,9.788e-05,2]
[355584033,1741327837827,-2407.23657923,9.788e-05,2]
[355584034,1741327837836,-736.96,9.788e-05,2]
[355584035,1741327837845,-392.24342077,9.788e-05,2]
[355584036,1741327837856,-324.69360436,9.788e-05,2]
[355584037,1741327837880,-437.70943335,9.788e-05,2]
[355584038,1741327838030,-376.0213201,9.788e-05,2]
[355584056,1741327840426,-1494.49222142,9.788e-05,2]
[355584057,1741327840436,-1459.24,9.788e-05,2]
[355584058,1741327840446,-2014.86,9.788e-05,2]
[355584059,1741327840455,-1629.59,9.788e-05,2]
[355584060,1741327840465,-4329.72314818,9.788e-05,2]
[355584065,1741327843915,-344.94220916,9.788e-05,2]
[355584066,1741327844171,-439.6789258,9.788e-05,2]
[355584074,1741327845892,-6947.51571686,9.788e-05,2]
[355584075,1741327845901,-374.44277781,9.788e-05,2]
[355584076,1741327846171,-957.57332624,9.788e-05,2]
[355584077,1741327846211,-2033.86389595,9.788e-05,2]
[355584078,1741327846221,-1541.0,9.788e-05,2]
[355584079,1741327846231,-1994.72,9.788e-05,2]
[355584080,1741327846241,-873.02,9.788e-05,2]
[355584082,1741327846250,-500.0,9.788e-05,2]
[355584083,1741327846260,-647.86,9.788e-05,2]